bitfinex/quotes_BTCUSD_20251104
["timestamp","ask_amount","ask_price","bid_price","bid_amount"]
[1762253012510,0.001,103960.0,103950.0,0.53264376]
[1762253012931,0.03959,103960.0,103950.0,0.34024357]
[1762253013141,0.09662,103960.0,103950.0,0.34024357]
[1762253013350,0.003,103960.0,103950.0,0.35124357]
[1762253013840,0.23297168,103960.0,103950.0,0.35124357]
[1762253014023,0.04059,103960.0,103950.0,0.37324357]
[1762253014230,0.04259,103960.0,103950.0,0.56564376]
[1762253014453,0.003,103960.0,103950.0,0.56660759]
[1762253016123,0.003,103960.0,103950.0,0.3742074]
[1762253016548,0.23490168,103960.0,103950.0,0.3742074]
[1762253016972,0.04252,103960.0,103950.0,0.3742074]
[1762253018031,0.003,103960.0,103950.0,0.60416759]
[1762253018249,0.003,103960.0,103950.0,0.4259174]
[1762253018452,0.003,103960.0,103950.0,0.3827474]
[1762253019494,0.003,103960.0,103950.0,0.57514759]
[1762253019702,0.003,103960.0,103950.0,0.3827474]
[1762253021075,0.23490168,103960.0,103950.0,0.3451874]
[1762253021283,0.23490168,103960.0,103950.0,0.0342074]
[1762253021284,0.29109168,103960.0,103950.0,0.0342074]
[1762253022597,0.28909168,103960.0,103950.0,0.0122074]
[1762253022806,0.28909168,103960.0,103910.0,0.01173915]
[1762253022807,0.19244082,103930.0,103910.0,0.01173915]
[1762253023010,0.23592082,103930.0,103910.0,0.00014586]
[1762253023231,0.32085082,103930.0,103910.0,0.00014586]
[1762253023440,0.32085082,103930.0,103920.0,0.00072322]
[1762253023656,0.36037082,103930.0,103920.0,0.00072322]
[1762253024066,0.36137082,103930.0,103920.0,0.00072322]
[1762253024906,0.16893,103930.0,103920.0,0.00072322]
[1762253025338,0.16793,103930.0,103920.0,0.00072322]
[1762253025548,0.16993,103930.0,103920.0,0.02272322]
[1762253025750,0.16993,103930.0,103920.0,0.00245322]
[1762253026152,0.17093,103930.0,103920.0,0.01345322]
[1762253026359,0.12745,103930.0,103920.0,0.01345322]
[1762253026559,0.17093,103930.0,103920.0,0.01345322]
[1762253026967,0.12745,103930.0,103920.0,0.01345322]
[1762253027171,0.17089,103930.0,103920.0,0.01345322]
[1762253027385,0.12745,103930.0,103920.0,0.01345322]
[1762253027593,0.07126,103930.0,103920.0,0.01345322]
[1762253027797,0.36425788,103930.0,103900.0,0.2944681]
[1762253028002,0.26129425,103910.0,103900.0,0.02065]
[1762253028211,0.30473701,103910.0,103880.0,0.19252888]
[1762253028414,0.30473701,103910.0,103890.0,0.19250963]
[1762253028415,0.16938,103910.0,103890.0,0.19250963]
[1762253028615,0.19340852,103910.0,103890.0,0.19250963]
[1762253028815,0.13628852,103910.0,103900.0,0.0004823]
[1762253029033,0.13628852,103910.0,103900.0,0.0024823]
[1762253029239,0.19340852,103910.0,103900.0,0.0024823]
[1762253029439,0.19440852,103910.0,103900.0,0.19497508]
[1762253029642,0.17038,103910.0,103900.0,0.19297508]
[1762253029848,0.11526,103910.0,103900.0,0.09672508]
[1762253030052,0.22577431,103930.0,103900.0,0.16105508]
[1762253030316,0.22577431,103930.0,103900.0,0.21615508]
[1762253030536,0.22690201,103930.0,103900.0,0.21615508]
[1762253031441,0.02484227,103930.0,103910.0,0.08441]
[1762253031612,0.21727999,103930.0,103910.0,0.08441]
[1762253031810,0.21727999,103930.0,103910.0,0.02931]
[1762253032246,0.27439999,103930.0,103910.0,0.02931]
[1762253032479,0.29039999,103930.0,103910.0,0.02931]
[1762253033042,0.09296227,103930.0,103910.0,0.02931]
[1762253033260,0.03070754,103930.0,103910.0,0.27688366]
[1762253033463,0.0021277,103930.0,103920.0,0.23307573]
[1762253033669,0.19456491,103930.0,103910.0,0.3951]
[1762253033871,0.25168491,103930.0,103910.0,0.34]
[1762253034329,0.294481,103920.0,103900.0,0.13931704]
[1762253034533,0.294481,103920.0,103910.0,0.003]
[1762253034741,0.28861573,103920.0,103910.0,0.003]
[1762253035158,0.28861573,103920.0,103900.0,0.15093704]
[1762253035366,0.20418677,103930.0,103910.0,0.04062]
[1762253035573,0.014,103920.0,103910.0,0.04062]
[1762253035870,0.014,103920.0,103910.0,0.21172167]
[1762253036042,0.015,103920.0,103910.0,0.19747425]
[1762253036247,0.0011277,103930.0,103910.0,0.19247425]
[1762253036452,0.0582477,103930.0,103910.0,0.19247425]
[1762253036667,0.0592477,103930.0,103910.0,0.21672167]
[1762253036886,0.0582477,103930.0,103910.0,0.25520167]
[1762253037083,0.0582477,103930.0,103910.0,0.23595425]
[1762253037288,0.001,103920.0,103910.0,0.24095425]
[1762253037629,0.001,103920.0,103910.0,0.15771425]
[1762253037874,0.001,103920.0,103910.0,0.17696167]
[1762253038079,0.001,103920.0,103910.0,0.16396167]
[1762253038555,0.002,103920.0,103910.0,0.17496167]
[1762253038765,0.002,103920.0,103910.0,0.17996167]
[1762253039240,0.002,103920.0,103910.0,0.17496167]
[1762253039480,0.003,103920.0,103910.0,0.18096167]
[1762253039711,0.003,103920.0,103910.0,0.52096167]
[1762253039945,0.003,103920.0,103910.0,0.40548]
[1762253040166,0.297481,103920.0,103910.0,0.022]
[1762253040386,0.29161573,103920.0,103910.0,0.022]
[1762253041059,0.63161573,103920.0,103910.0,0.022]
[1762253042135,0.29161573,103920.0,103910.0,0.022]
[1762253043607,0.63161573,103920.0,103910.0,0.022]
[1762253043826,0.63161573,103920.0,103910.0,0.02048]
[1762253044041,0.29161573,103920.0,103910.0,0.02048]
[1762253044274,0.29161573,103920.0,103910.0,0.02009]
[1762253045581,0.29161573,103920.0,103910.0,0.02039]
[1762253045786,0.29161573,103920.0,103910.0,0.01885]
[1762253046943,0.06882,103900.0,103890.0,0.12841642]
[1762253047123,0.06882,103900.0,103890.0,0.00014592]
[1762253047332,0.07468527,103900.0,103890.0,0.00014592]
[1762253047865,0.13180527,103900.0,103890.0,0.00014592]
[1762253048072,0.13180527,103900.0,103890.0,0.19265723]
[1762253048269,0.15780527,103900.0,103890.0,0.19465723]
[1762253048675,0.17180527,103900.0,103890.0,0.09939723]
[1762253048841,0.11468527,103900.0,103890.0,0.09939723]
[1762253050322,0.16594,103900.0,103890.0,0.09939723]
[1762253051405,0.16594,103900.0,103890.0,0.003]
[1762253051593,0.16594,103900.0,103890.0,0.19551131]
[1762253052401,0.16594,103900.0,103890.0,0.003]
[1762253052608,0.35843278,103900.0,103890.0,0.003]
[1762253053401,0.41352355,103900.0,103890.0,0.003]
[1762253053536,0.41352355,103900.0,103890.0,0.001]
[1762253053537,0.33243278,103900.0,103890.0,0.001]
[1762253053961,0.68443278,103900.0,103890.0,0.002]
[1762253054431,0.67243278,103900.0,103890.0,0.001]
[1762253054992,0.19252725,103890.0,103870.0,0.0002]
[1762253055189,0.07373527,103880.0,103870.0,0.0002]
[1762253055399,0.32325511,103880.0,103870.0,0.0002]
[1762253055612,0.31738984,103880.0,103870.0,0.0002]
[1762253056231,0.02997,103870.0,103850.0,0.10628638]
[1762253056385,0.08696,103870.0,103850.0,0.10628638]
[1762253056586,0.27950839,103870.0,103850.0,0.10628638]
[1762253056787,0.08696,103870.0,103850.0,0.10628638]
[1762253057212,0.08696,103870.0,103850.0,0.11774748]
[1762253057673,0.11096,103870.0,103850.0,0.11774748]
[1762253058083,0.11096,103870.0,103850.0,0.02109037]
[1762253058297,0.11096,103870.0,103850.0,0.21364694]
[1762253058503,0.12396,103870.0,103850.0,0.21364694]
[1762253058719,0.31650906,103870.0,103850.0,0.21364694]
[1762253058926,0.0379,103860.0,103850.0,0.0114611]
[1762253059129,0.10075527,103860.0,103850.0,0.0114611]
[1762253059340,0.29332395,103860.0,103840.0,0.53253369]
[1762253059597,0.09489,103860.0,103840.0,0.60672021]
[1762253059867,0.10075527,103860.0,103840.0,0.60672021]
[1762253060083,0.29332541,103860.0,103840.0,0.60672021]
[1762253060293,0.32646014,103860.0,103840.0,0.60672021]
[1762253060739,0.30046014,103860.0,103840.0,0.60672021]
[1762253061150,0.10789,103860.0,103850.0,0.00096522]
[1762253061357,0.10075527,103860.0,103850.0,0.00096522]
[1762253061564,0.12475527,103860.0,103850.0,0.03147214]
[1762253061813,0.13775527,103860.0,103850.0,0.00096522]
[1762253062029,0.12475527,103860.0,103850.0,0.00096522]
[1762253062465,0.13875527,103860.0,103850.0,0.00096522]
[1762253062885,0.11475527,103860.0,103850.0,0.00096522]
[1762253063090,0.14075527,103860.0,103850.0,0.00096522]
[1762253063948,0.33332218,103860.0,103850.0,0.00096522]
[1762253064163,0.32745691,103860.0,103850.0,0.00096522]
[1762253067603,0.30145691,103860.0,103850.0,0.00096522]
[1762253067827,0.28745691,103860.0,103850.0,0.00096522]
[1762253068059,0.29145691,103860.0,103850.0,0.00096522]
[1762253068333,0.02997,103850.0,103840.0,0.192604]
[1762253068554,0.07373527,103850.0,103840.0,0.192604]
[1762253068780,0.07373527,103850.0,103830.0,0.30728835]
[1762253068989,0.07373527,103850.0,103830.0,0.30743436]
[1762253069422,0.07373527,103850.0,103840.0,0.00024138]
[1762253069645,0.15672527,103850.0,103840.0,0.19284538]
[1762253069867,0.17072527,103850.0,103840.0,0.19284538]
[1762253070076,0.21400527,103850.0,103830.0,0.25465574]
[1762253070294,0.1821,103850.0,103840.0,0.192604]
[1762253070511,0.2061,103850.0,103840.0,0.192604]
[1762253070937,0.1921,103850.0,103840.0,0.192604]
[1762253071162,0.1921,103850.0,103830.0,0.25465574]
[1762253071408,0.2051,103850.0,103830.0,0.25465574]
[1762253071593,0.1921,103850.0,103840.0,0.211864]
[1762253071845,0.1921,103850.0,103840.0,0.192604]
[1762253072101,0.1821,103850.0,103840.0,0.192604]
[1762253072312,0.1941,103850.0,103840.0,0.192604]
[1762253072524,0.1941,103850.0,103830.0,0.25465574]
[1762253072735,0.2071,103850.0,103830.0,0.25465574]
[1762253072943,0.1941,103850.0,103830.0,0.25465574]
[1762253073374,0.1941,103850.0,103840.0,0.192604]
[1762253073587,0.1681,103850.0,103840.0,0.192604]
[1762253073800,0.1921,103850.0,103840.0,0.192604]
[1762253074235,0.2061,103850.0,103840.0,0.192604]
[1762253075125,0.12511,103850.0,103840.0,0.192604]
[1762253075360,0.014,103850.0,103840.0,0.532604]
[1762253075576,0.04,103850.0,103840.0,0.5635575]
[1762253076441,0.04,103850.0,103840.0,0.532604]
[1762253078153,0.0243394,103850.0,103840.0,0.532604]
[1762253081447,0.0243394,103850.0,103840.0,0.65228737]
[1762253081872,0.0243394,103850.0,103840.0,0.68324087]
[1762253082601,0.0243394,103850.0,103840.0,0.5635575]
[1762253083232,0.19281849,103880.0,103850.0,0.27767952]
[1762253083444,0.19281849,103880.0,103850.0,0.66087952]
[1762253083667,0.29115281,103890.0,103860.0,0.24930459]
[1762253083888,0.33435281,103890.0,103870.0,0.23078817]
[1762253084098,0.33435281,103890.0,103870.0,0.03824]
[1762253084306,0.03902,103880.0,103870.0,0.1925477]
[1762253084513,0.09872,103880.0,103870.0,0.1925477]
[1762253084933,0.01,103880.0,103870.0,0.6294677]
[1762253085152,0.0104848,103880.0,103870.0,0.6354677]
[1762253085372,0.0004848,103880.0,103870.0,0.6786677]
[1762253085587,0.0004848,103880.0,103870.0,0.6726677]
[1762253085807,0.29469464,103880.0,103870.0,0.0432]
[1762253086026,0.29569464,103880.0,103860.0,0.07064557]
[1762253086242,0.26819364,103870.0,103860.0,0.07064557]
[1762253086455,0.26232837,103870.0,103860.0,0.07064557]
[1762253086899,0.19256691,103860.0,103850.0,0.02837]
[1762253087109,0.23304691,103860.0,103850.0,0.02837]
[1762253087333,0.28004837,103870.0,103850.0,0.26142545]
[1762253087596,0.0293,103870.0,103850.0,0.31787545]
[1762253087779,0.22184861,103870.0,103850.0,0.31787545]
[1762253087985,0.28004861,103870.0,103850.0,0.31787545]
[1762253088188,0.009,103860.0,103850.0,0.31887545]
[1762253088605,0.018,103860.0,103850.0,0.32087545]
[1762253089073,0.0303,103870.0,103860.0,0.19256691]
[1762253089262,0.003,103870.0,103860.0,0.28948691]
[1762253089666,0.003,103870.0,103860.0,0.33268691]
[1762253090272,0.002,103870.0,103860.0,0.67268691]
[1762253090480,0.0004848,103880.0,103870.0,0.19254837]
[1762253090698,0.0004848,103880.0,103870.0,0.28946837]
[1762253090899,0.0004848,103880.0,103870.0,0.23301837]
[1762253091107,0.0004848,103880.0,103870.0,0.04047]
[1762253091309,0.0004848,103880.0,103860.0,0.63221691]
[1762253091526,0.001,103870.0,103860.0,0.63521691]
[1762253091726,0.003,103870.0,103860.0,0.64021691]
[1762253091945,0.003,103870.0,103860.0,0.68068691]
[1762253092246,0.001,103870.0,103860.0,0.67568691]
[1762253092411,0.001,103870.0,103860.0,0.67868691]
[1762253092624,0.0014848,103880.0,103870.0,0.19254837]
[1762253092812,0.0014848,103880.0,103870.0,0.23301837]
[1762253093150,0.0014848,103880.0,103870.0,0.28946837]
[1762253093360,0.0014848,103880.0,103870.0,0.53315837]
[1762253093577,0.0014848,103880.0,103870.0,0.73315837]
[1762253093791,0.0004848,103880.0,103870.0,0.73315837]
[1762253094002,0.0024848,103880.0,103870.0,0.73915837]
[1762253094633,0.0024848,103880.0,103870.0,0.80629415]
[1762253094847,0.0034848,103880.0,103870.0,0.81729415]
[1762253095061,0.0034848,103880.0,103870.0,0.82029415]
[1762253095269,0.0014848,103880.0,103870.0,0.73615837]
[1762253095484,0.0014848,103880.0,103870.0,0.57935837]
[1762253095686,0.0034848,103880.0,103870.0,0.58435837]
[1762253096851,0.0034848,103880.0,103870.0,0.54115837]
[1762253097060,0.0034848,103880.0,103870.0,0.58435837]
[1762253099581,0.0034848,103880.0,103870.0,0.20115837]
[1762253099784,0.0034848,103880.0,103870.0,0.18790837]
[1762253100020,0.0034848,103880.0,103870.0,0.24435837]
[1762253101072,0.0034848,103880.0,103870.0,0.44435837]
[1762253101686,0.0034848,103880.0,103870.0,0.78435837]
[1762253101899,0.0034848,103880.0,103870.0,0.85149415]
[1762253102318,0.0034848,103880.0,103870.0,0.97263852]
[1762253102525,0.0034848,103880.0,103870.0,0.85149415]
[1762253102985,0.00298903,103880.0,103870.0,0.85149415]
[1762253103216,0.03892186,103930.0,103900.0,0.54211741]
[1762253103409,0.23424555,103930.0,103920.0,0.04047]
[1762253103650,0.23424555,103930.0,103920.0,0.06854]
[1762253103869,0.23569238,103930.0,103920.0,0.06854]
[1762253104298,0.27617238,103930.0,103920.0,0.10196578]
[1762253104526,0.33437238,103930.0,103920.0,0.02807]
[1762253104736,0.19245573,103920.0,103910.0,0.36807]
[1762253105216,0.19247425,103910.0,103900.0,0.02807]
[1762253105423,0.19247425,103910.0,103900.0,0.36807]
[1762253105825,0.23567425,103910.0,103900.0,0.40854]
[1762253106026,0.26497425,103910.0,103900.0,0.40854]
[1762253107132,0.30545425,103910.0,103900.0,0.40854]
[1762253107293,0.30745425,103910.0,103900.0,0.42654]
[1762253107493,0.30845425,103910.0,103900.0,0.39407]
[1762253107720,0.36665425,103910.0,103900.0,0.026]
[1762253108347,0.36665425,103910.0,103900.0,0.09701539]
[1762253109805,0.36665425,103910.0,103900.0,0.026]
[1762253110028,1.07611848,103910.0,103900.0,0.026]
[1762253110253,0.37665424,103910.0,103900.0,0.026]
[1762253110645,0.37761901,103910.0,103900.0,0.026]
[1762253110852,0.4038013,103910.0,103900.0,0.026]
[1762253111060,0.19252984,103880.0,103870.0,0.32658452]
[1762253111263,0.19252984,103880.0,103860.0,0.24539525]
[1762253111884,0.19841364,103870.0,103850.0,0.23058472]
[1762253112085,0.19254837,103870.0,103850.0,0.27378472]
[1762253112292,0.19254837,103870.0,103850.0,0.27426952]
[1762253112501,0.19254837,103870.0,103850.0,0.0720548]
[1762253112710,0.19254837,103870.0,103850.0,0.26464]
[1762253112919,0.26504837,103870.0,103850.0,0.21157]
[1762253113115,0.26504837,103870.0,103860.0,0.341]
[1762253113344,0.22184837,103870.0,103860.0,0.001]
[1762253113556,0.0293,103870.0,103850.0,0.57578446]
[1762253113754,0.0293,103870.0,103860.0,0.53256691]
[1762253113755,0.017,103870.0,103860.0,0.53256691]
[1762253114586,0.21054837,103870.0,103860.0,0.34]
[1762253114791,0.20954837,103870.0,103850.0,0.23778446]
[1762253115166,0.19254837,103870.0,103850.0,0.23578446]
[1762253115372,0.20354837,103870.0,103850.0,0.23578446]
[1762253115622,0.23291837,103870.0,103850.0,0.26481844]
[1762253115824,0.04037,103870.0,103860.0,0.19256691]
[1762253116030,0.02937,103870.0,103860.0,0.19256691]
[1762253116203,0.04437,103870.0,103860.0,0.003]
[1762253116413,0.04337,103870.0,103860.0,0.19256691]
[1762253116609,0.02937,103870.0,103860.0,0.19256691]
[1762253116813,0.22592084,103870.0,103850.0,0.60581844]
[1762253117009,0.22892084,103870.0,103850.0,0.60581844]
[1762253117217,0.03237,103870.0,103860.0,0.19256691]
[1762253117398,0.03337,103870.0,103860.0,0.19556691]
[1762253117600,0.004,103870.0,103860.0,0.53580822]
[1762253117833,0.003,103870.0,103860.0,0.56376172]
[1762253118048,0.003,103870.0,103860.0,0.36914291]
[1762253118265,0.004,103870.0,103860.0,0.53280822]
[1762253118432,0.004,103870.0,103860.0,0.34024131]
[1762253118626,0.011,103870.0,103860.0,0.34024131]
[1762253119007,0.011,103870.0,103860.0,0.53280822]
[1762253119258,0.004,103870.0,103860.0,0.53280822]
[1762253119454,0.007,103870.0,103860.0,0.54080822]
[1762253119660,0.003,103870.0,103860.0,0.54080822]
[1762253119836,0.00886527,103870.0,103860.0,0.54280822]
[1762253120051,0.00986527,103870.0,103860.0,0.54280822]
[1762253120253,0.20241364,103870.0,103860.0,0.35024131]
[1762253120472,0.36620837,103870.0,103860.0,0.01024131]
[1762253124128,0.19258306,103860.0,103840.0,0.26623817]
[1762253124416,0.19258306,103860.0,103840.0,0.26638418]
[1762253124825,0.24880306,103860.0,103840.0,0.26638418]
[1762253125201,0.19258306,103860.0,103840.0,0.26638418]
[1762253125450,0.003,103860.0,103840.0,0.26838418]
[1762253125621,0.00886527,103860.0,103850.0,0.19258545]
[1762253125800,0.00586527,103860.0,103850.0,0.19258545]
[1762253126007,0.23930334,103860.0,103840.0,0.26638418]
[1762253126208,0.19258545,103850.0,103840.0,0.07578092]
[1762253126817,0.19258545,103850.0,103830.0,0.33076984]
[1762253126818,0.192604,103840.0,103830.0,0.33076984]
[1762253127030,0.233474,103840.0,103830.0,0.40228817]
[1762253127235,0.233474,103840.0,103810.0,0.05698464]
[1762253127236,0.1926411,103820.0,103810.0,0.05698464]
[1762253127436,0.2358411,103820.0,103810.0,0.02807]
[1762253127857,0.3329311,103820.0,103810.0,0.0392732]
[1762253128079,0.19265966,103810.0,103800.0,0.00768]
[1762253128291,0.19265966,103810.0,103800.0,0.00782604]
[1762253128506,0.26289966,103810.0,103800.0,0.00782604]
[1762253128688,0.31911966,103810.0,103800.0,0.00782604]
[1762253128905,0.31912001,103810.0,103790.0,0.1044128]
[1762253129068,0.31912001,103810.0,103800.0,0.01100793]
[1762253129275,0.16966,103810.0,103800.0,0.19267822]
[1762253129479,0.0432,103810.0,103800.0,0.19267822]
[1762253129885,0.0432,103810.0,103800.0,0.53267822]
[1762253130086,0.0472,103810.0,103800.0,0.19267822]
[1762253130312,0.0472,103810.0,103800.0,0.19412695]
[1762253130521,0.0512,103810.0,103800.0,0.00144873]
[1762253130732,0.07898,103810.0,103800.0,0.19412695]
[1762253130932,0.07998,103810.0,103800.0,0.19412695]
[1762253131161,0.07198,103810.0,103800.0,0.19412695]
[1762253131365,0.07498,103810.0,103800.0,0.19412695]
[1762253131759,0.26763966,103810.0,103800.0,0.00144873]
[1762253131985,0.26763966,103810.0,103800.0,0.01239529]
[1762253132400,0.07498,103810.0,103800.0,0.00144873]
[1762253132579,0.07498,103810.0,103800.0,0.19412695]
[1762253132806,0.30472966,103810.0,103800.0,0.00144873]
[1762253133008,0.07498,103810.0,103800.0,0.19412695]
[1762253133591,0.0472,103810.0,103800.0,0.19412695]
[1762253134045,0.004,103810.0,103800.0,0.19412695]
[1762253135496,0.004,103810.0,103800.0,0.0124421]
[1762253135701,0.20252493,103810.0,103800.0,0.0124421]
[1762253135913,0.22443966,103810.0,103800.0,0.0124421]
[1762253136153,0.26152966,103810.0,103800.0,0.0124421]
[1762253136333,0.06887,103810.0,103800.0,0.0124421]
[1762253136533,0.26739493,103810.0,103800.0,0.0124421]
[1762253136744,0.26152966,103810.0,103800.0,0.0124421]
[1762253136965,0.06887,103810.0,103800.0,0.20512032]
[1762253137185,0.07373527,103810.0,103800.0,0.20512032]
[1762253137406,0.003,103810.0,103800.0,0.20512032]
[1762253137637,0.04906527,103820.0,103810.0,0.53265966]
[1762253137855,0.00014534,103820.0,103810.0,0.53265966]
[1762253138125,0.04338534,103820.0,103810.0,0.53265966]
[1762253138765,0.04638534,103820.0,103810.0,0.53265966]
[1762253139194,0.00414534,103820.0,103810.0,0.53265966]
[1762253139403,0.04738534,103820.0,103810.0,0.53265966]
[1762253139616,0.24002644,103820.0,103810.0,0.34]
[1762253139827,0.27711644,103820.0,103810.0,0.34]
[1762253140038,0.33311644,103820.0,103810.0,0.34]
[1762253140246,0.19265966,103810.0,103800.0,0.01099337]
[1762253140461,0.33311644,103820.0,103800.0,0.20367154]
[1762253140690,0.33311644,103820.0,103800.0,0.19267817]
[1762253141112,0.33011644,103820.0,103800.0,0.19267817]
[1762253141329,0.003,103810.0,103800.0,0.19267817]
[1762253141999,0.04338534,103820.0,103810.0,0.19265966]
[1762253142219,0.00014534,103820.0,103810.0,0.19265966]
[1762253142437,0.04334534,103820.0,103810.0,0.19265966]
[1762253143094,0.04334534,103820.0,103810.0,0.19386684]
[1762253143534,0.04734534,103820.0,103810.0,0.00120718]
[1762253143760,0.33894171,103820.0,103810.0,0.00120718]
[1762253143972,0.33007644,103820.0,103800.0,0.44846142]
[1762253144187,0.33007644,103820.0,103800.0,0.19267641]
[1762253144404,0.33307644,103820.0,103800.0,0.19267641]
[1762253144873,0.00586527,103810.0,103800.0,0.19267641]
[1762253145091,0.22856697,103810.0,103800.0,0.0107998]
[1762253145306,0.2227017,103810.0,103800.0,0.0107998]
[1762253145519,0.2227017,103810.0,103800.0,0.00024151]
[1762253145731,0.2611817,103810.0,103790.0,0.23589615]
[1762253146151,0.2611817,103810.0,103790.0,0.57589615]
[1762253146785,0.2621817,103810.0,103790.0,0.19269615]
[1762253146997,0.3225017,103810.0,103790.0,0.53269615]
[1762253147210,0.2641817,103810.0,103790.0,0.5437714]
[1762253147420,0.2611817,103810.0,103790.0,0.5437714]
[1762253147843,0.2611817,103810.0,103790.0,0.54377147]
[1762253148743,0.2761817,103810.0,103790.0,0.61559919]
[1762253149790,0.3345017,103810.0,103790.0,0.61559919]
[1762253150126,0.08352,103810.0,103800.0,0.53267822]
[1762253150958,0.07252,103810.0,103800.0,0.53267822]
[1762253151346,0.07552,103810.0,103800.0,0.53267822]
[1762253151544,0.003,103810.0,103800.0,0.53267822]
[1762253151944,0.004,103810.0,103800.0,0.53267822]
[1762253153008,0.004,103810.0,103800.0,0.19267822]
[1762253153644,0.004,103810.0,103800.0,0.43587822]
[1762253153854,0.004,103810.0,103800.0,0.46683172]
[1762253154052,0.004,103810.0,103800.0,0.49574965]
[1762253154566,0.001,103810.0,103800.0,0.53193193]
[1762253154799,0.00014534,103820.0,103810.0,0.22884194]
[1762253155009,0.00014534,103820.0,103810.0,0.56884194]
[1762253155892,0.01414534,103820.0,103810.0,0.56884194]
[1762253157426,0.027,103820.0,103810.0,0.78147492]
[1762253157558,0.027,103820.0,103810.0,0.81867492]
[1762253157763,0.027,103820.0,103810.0,0.84687492]
[1762253157997,0.027,103820.0,103810.0,0.90327492]
[1762253159733,0.027,103820.0,103810.0,1.01427492]
[1762253160435,0.027,103820.0,103810.0,1.04522842]
[1762253162682,0.03004,103880.0,103860.0,0.19255856]
[1762253162894,0.03004,103880.0,103870.0,0.25794837]
[1762253162895,0.00048699,103880.0,103870.0,0.25794837]
[1762253163115,0.00048699,103880.0,103870.0,0.1218]
[1762253163321,0.0016935,103880.0,103870.0,0.1218]
[1762253163530,0.0016935,103880.0,103870.0,0.25794837]
[1762253163824,0.0016935,103880.0,103870.0,0.26911124]
[1762253164034,0.0036935,103880.0,103870.0,0.26911124]
[1762253164462,0.0036935,103880.0,103870.0,0.07656287]
[1762253164672,0.19622334,103880.0,103870.0,0.07656287]
[1762253164917,0.19622334,103880.0,103870.0,0.08356287]
[1762253165159,0.19622334,103880.0,103870.0,0.07656287]
[1762253165395,0.23270334,103880.0,103870.0,0.03936287]
[1762253165611,0.23370334,103880.0,103870.0,0.04736287]
[1762253165826,0.23570334,103880.0,103870.0,0.06236287]
[1762253166241,0.0431735,103880.0,103870.0,0.25491124]
[1762253166487,0.0046935,103880.0,103870.0,0.29211124]
[1762253166698,0.0046935,103880.0,103870.0,0.19578124]
[1762253166900,0.0046935,103880.0,103870.0,0.23521497]
[1762253167314,0.0046935,103880.0,103870.0,0.04843373]
[1762253167552,0.19722334,103880.0,103870.0,0.04843373]
[1762253167770,0.29402334,103880.0,103850.0,0.30376088]
[1762253167997,0.19254863,103870.0,103850.0,0.34696088]
[1762253168224,0.00096531,103870.0,103860.0,0.22076691]
[1762253168444,0.00096531,103870.0,103860.0,0.24896691]
[1762253168660,0.00096531,103870.0,103860.0,0.58896691]
[1762253169101,0.00096531,103870.0,103860.0,0.49268691]
[1762253169761,0.00296531,103870.0,103860.0,0.49268691]
[1762253169978,0.00496531,103870.0,103860.0,0.50368691]
[1762253170644,0.00496531,103870.0,103860.0,0.51462491]
[1762253171112,0.00296531,103870.0,103860.0,0.51462491]
[1762253171326,0.00396531,103870.0,103860.0,0.52162491]
[1762253171828,0.00396531,103870.0,103860.0,0.54088491]
[1762253172047,0.00396531,103870.0,103860.0,0.52162491]
[1762253173289,0.00396531,103870.0,103860.0,0.52032491]
[1762253174560,0.00396531,103870.0,103860.0,0.58746069]
[1762253174986,0.00396531,103870.0,103860.0,0.52032491]
[1762253175192,0.00396531,103870.0,103860.0,0.56352491]
[1762253175610,0.00096531,103870.0,103860.0,0.54552491]
[1762253175813,0.01096531,103870.0,103860.0,0.54752491]
[1762253176017,0.01496531,103870.0,103860.0,0.54752491]
[1762253176856,0.01496531,103870.0,103860.0,0.58370719]
[1762253177065,0.01496531,103870.0,103860.0,0.65308719]
[1762253178638,0.01496531,103870.0,103860.0,0.61690491]
[1762253179068,0.01496531,103870.0,103860.0,0.73734269]
[1762253179449,0.01496531,103870.0,103860.0,0.77352497]
[1762253179653,0.01496531,103870.0,103860.0,0.80447847]
[1762253180347,0.01496531,103870.0,103860.0,0.77352497]
[1762253181316,0.01496531,103870.0,103860.0,0.80242337]
[1762253182295,0.01496531,103870.0,103860.0,0.80247137]
[1762253184159,0.01496531,103870.0,103860.0,0.80243137]
[1762253184764,0.01496531,103870.0,103860.0,0.68199359]
[1762253186477,0.01496531,103870.0,103860.0,0.64581131]
[1762253190929,0.01496531,103870.0,103860.0,0.76624909]
[1762253191942,0.01496531,103870.0,103860.0,0.87724909]
[1762253196518,0.01496531,103870.0,103860.0,0.75681131]
[1762253198534,0.01496531,103870.0,103860.0,0.87776706]
[1762253202523,0.08311605,103890.0,103870.0,0.53254837]
[1762253202745,0.08326205,103890.0,103880.0,0.02075]
[1762253202973,0.000146,103890.0,103880.0,0.02075]
[1762253203197,0.000146,103890.0,103880.0,0.05812]
[1762253203435,0.067416,103890.0,103880.0,0.02075]
[1762253203657,0.028946,103890.0,103880.0,0.11501]
[1762253203885,0.22245731,103890.0,103880.0,0.11501]
[1762253204096,0.22245731,103890.0,103880.0,0.05812]
[1762253204311,0.22145731,103890.0,103880.0,0.05812]
[1762253204547,0.25992731,103890.0,103880.0,0.02075]
[1762253204763,0.31783731,103890.0,103880.0,0.02875]
[1762253204981,0.31783731,103890.0,103870.0,0.07764]
[1762253205430,0.125326,103890.0,103870.0,0.27018728]
[1762253205887,0.124326,103890.0,103870.0,0.27018728]
[1762253206114,0.028946,103890.0,103880.0,0.03659]
[1762253206304,0.029946,103890.0,103880.0,0.22911984]
[1762253206565,0.001146,103890.0,103880.0,0.28283984]
[1762253207000,0.000146,103890.0,103880.0,0.28283984]
[1762253207128,0.001146,103890.0,103880.0,0.29383984]
[1762253207527,0.001146,103890.0,103880.0,0.29683984]
[1762253210642,0.001146,103890.0,103880.0,0.37061968]
[1762253211006,0.06773844,103890.0,103880.0,0.0142]
[1762253211210,0.12228844,103890.0,103880.0,0.0142]
[1762253211436,0.35795975,103890.0,103880.0,0.0142]
[1762253213431,0.35795975,103890.0,103870.0,0.33239]
[1762253213627,0.35747731,103890.0,103870.0,0.33239]
[1762253214284,0.35747731,103890.0,103870.0,0.27867]
[1762253214719,0.35747731,103890.0,103870.0,0.28167]
[1762253214897,0.31318984,103880.0,103850.0,0.44840535]
[1762253215111,0.08126,103870.0,103850.0,0.22753167]
[1762253215254,0.32835984,103870.0,103850.0,0.10657592]
[1762253216481,0.32935984,103870.0,103860.0,0.34]
[1762253216750,0.13681,103870.0,103860.0,0.34]
[1762253216928,0.32935837,103870.0,103860.0,0.34]